[Event "*** Titled Tuesday Blitz"]
[Site "Chess.com"]
[Date "2021.02.09"]
[Round "6"]
[White "TokChess"]
[Black "CraiggoryC"]
[Result "1-0"]
[WhiteElo "2395"]
[BlackElo "2177"]
[TimeControl "180+1"]
[EndTime "11:09:02 PST"]
[Termination "TokChess won by resignation"]

1. b3 {[%clk 0:03:00.9]} 1... e5 {[%clk 0:02:58.4]} 2. Bb2 {[%clk 0:03:01.8]}
2... Nc6 {[%clk 0:02:58.4]} 3. e3 {[%clk 0:03:01.8]} 3... g6 {[%clk 0:02:58.7]}
4. Bb5 {[%clk 0:03:01.6]} 4... Bg7 {[%clk 0:02:58.9]} 5. Ne2 {[%clk 0:03:01.7]}
5... Nge7 {[%clk 0:02:56.6]} 6. O-O {[%clk 0:03:01.7]} 6... d6 {[%clk
0:02:57.1]} 7. d4 {[%clk 0:03:01.2]} 7... O-O {[%clk 0:02:55.8]} 8. dxe5 {[%clk
0:02:52.1]} 8... dxe5 {[%clk 0:02:55]} 9. Nbc3 {[%clk 0:02:44.2]} 9... a6 {[%clk
0:02:26.6]} 10. Bxc6 {[%clk 0:02:42.7]} 10... Nxc6 {[%clk 0:02:25.7]} 11. Ng3
{[%clk 0:02:42.4]} 11... f5 {[%clk 0:02:20.1]} 12. Nd5 {[%clk 0:02:30.6]} 12...
Be6 {[%clk 0:02:13.5]} 13. c4 {[%clk 0:02:30.5]} 13... Re8 {[%clk 0:01:43.5]}
14. Qd2 {[%clk 0:02:24.8]} 14... Ne7 {[%clk 0:01:36]} 15. Rfd1 {[%clk
0:02:18.7]} 15... c6 {[%clk 0:01:25.3]} 16. Nxe7+ {[%clk 0:02:01.7]} 16... Qxe7
{[%clk 0:01:25]} 17. Qd6 {[%clk 0:02:00.6]} 17... Rad8 {[%clk 0:01:03.8]} 18.
Qxe7 {[%clk 0:01:56.9]} 18... Rxd1+ {[%clk 0:01:03.6]} 19. Rxd1 {[%clk
0:01:57.8]} 19... Rxe7 {[%clk 0:01:03.9]} 20. Ne2 {[%clk 0:01:47.6]} 20... Kf7
{[%clk 0:00:56.2]} 21. Kf1 {[%clk 0:01:40.4]} 21... Rd7 {[%clk 0:00:55.1]} 22.
Rxd7+ {[%clk 0:01:39.2]} 22... Bxd7 {[%clk 0:00:56]} 23. f4 {[%clk 0:01:37.1]}
23... c5 {[%clk 0:00:40.5]} 24. h4 {[%clk 0:00:48.2]} 24... e4 {[%clk
0:00:37.1]} 25. Bxg7 {[%clk 0:00:47.2]} 25... Kxg7 {[%clk 0:00:38]} 26. Ng3
{[%clk 0:00:27.1]} 26... b5 {[%clk 0:00:30.1]} 27. cxb5 {[%clk 0:00:24.1]} 27...
axb5 {[%clk 0:00:30.2]} 28. Ke2 {[%clk 0:00:21.7]} 28... Be6 {[%clk 0:00:28.6]}
29. Kd2 {[%clk 0:00:20.6]} 29... c4 {[%clk 0:00:29]} 30. b4 {[%clk 0:00:20.1]}
30... c3+ {[%clk 0:00:20.9]} 31. Kxc3 {[%clk 0:00:20.3]} 31... Bxa2 {[%clk
0:00:21.7]} 32. h5 {[%clk 0:00:20.1]} 32... Bc4 {[%clk 0:00:21.5]} 33. Kd4
{[%clk 0:00:17.9]} 33... Kf6 {[%clk 0:00:21.1]} 34. hxg6 {[%clk 0:00:15.1]}
34... hxg6 {[%clk 0:00:22]} 35. Nh1 {[%clk 0:00:15.1]} 35... Bf1 {[%clk
0:00:21.3]} 36. g3 {[%clk 0:00:15.3]} 36... Ke6 {[%clk 0:00:21.1]} 37. Nf2
{[%clk 0:00:15.8]} 37... Kd6 {[%clk 0:00:20.8]} 38. Nd1 {[%clk 0:00:14.7]} 38...
Bc4 {[%clk 0:00:20]} 39. Nc3 {[%clk 0:00:14.5]} 39... Kc6 {[%clk 0:00:19.1]} 40.
Nb1 {[%clk 0:00:14.8]} 40... Kd6 {[%clk 0:00:18.9]} 41. Nd2 {[%clk 0:00:15.1]}
41... Bd3 {[%clk 0:00:18.5]} 42. Nb3 {[%clk 0:00:14.8]} 42... Bc4 {[%clk
0:00:18.1]} 43. Nc5 {[%clk 0:00:14.7]} 43... Be2 {[%clk 0:00:17.4]} 44. Nb7+
{[%clk 0:00:13.8]} 44... Kc7 {[%clk 0:00:16.8]} 45. Nc5 {[%clk 0:00:13.3]} 45...
Kd6 {[%clk 0:00:17.1]} 46. Nb3 {[%clk 0:00:13.5]} 46... Bc4 {[%clk 0:00:16.8]}
47. Nc1 {[%clk 0:00:11.8]} 47... Bf1 {[%clk 0:00:15.8]} 48. Na2 {[%clk 0:00:11]}
48... Bc4 {[%clk 0:00:15.4]} 49. Nc3 {[%clk 0:00:10.5]} 49... Kc6 {[%clk
0:00:13.4]} 50. g4 {[%clk 0:00:10.8]} 50... Kd6 {[%clk 0:00:11.8]} 51. g5 {[%clk
0:00:09.5]} 51... Kc6 {[%clk 0:00:10.3]} 52. Ke5 {[%clk 0:00:09.6]} 52... Bd3
{[%clk 0:00:05.8]} 53. Kf6 {[%clk 0:00:09.3]} 1-0

[Event "*** Titled Tuesday Blitz"]
[Site "Chess.com"]
[Date "2021.02.09"]
[Round "6"]
[White "chescomhuynya"]
[Black "BahadirOzen"]
[Result "1/2-1/2"]
[WhiteElo "2497"]
[BlackElo "2717"]
[TimeControl "180+1"]
[EndTime "11:09:03 PST"]
[Termination "Game drawn by repetition"]

1. d4 {[%clk 0:03:00.9]} 1... d6 {[%clk 0:03:00]} 2. e4 {[%clk 0:03:00.5]} 2...
g6 {[%clk 0:02:59.5]} 3. Nc3 {[%clk 0:02:59.7]} 3... Bg7 {[%clk 0:02:59.2]} 4.
g3 {[%clk 0:02:58.5]} 4... Nf6 {[%clk 0:02:54.7]} 5. Bg2 {[%clk 0:02:58.8]} 5...
O-O {[%clk 0:02:55.3]} 6. Nge2 {[%clk 0:02:59.4]} 6... e5 {[%clk 0:02:55.5]} 7.
O-O {[%clk 0:02:59.7]} 7... Nbd7 {[%clk 0:02:54.6]} 8. h3 {[%clk 0:02:57.4]}
8... a6 {[%clk 0:02:50.8]} 9. a4 {[%clk 0:02:56.5]} 9... b6 {[%clk 0:02:50.9]}
10. Be3 {[%clk 0:02:56.7]} 10... Bb7 {[%clk 0:02:48.8]} 11. Qd2 {[%clk
0:02:49.7]} 11... c6 {[%clk 0:02:24.6]} 12. g4 {[%clk 0:02:36.8]} 12... b5
{[%clk 0:02:23.4]} 13. Ng3 {[%clk 0:02:33.4]} 13... b4 {[%clk 0:02:21.5]} 14.
Nce2 {[%clk 0:02:33.4]} 14... exd4 {[%clk 0:02:19.8]} 15. Nxd4 {[%clk
0:02:26.7]} 15... c5 {[%clk 0:02:18.5]} 16. Nde2 {[%clk 0:02:25.5]} 16... Ne5
{[%clk 0:02:17.4]} 17. b3 {[%clk 0:02:24.6]} 17... Re8 {[%clk 0:02:12]} 18. f4
{[%clk 0:02:21.3]} 18... Nexg4 {[%clk 0:02:05.5]} 19. hxg4 {[%clk 0:02:20.4]}
19... Nxg4 {[%clk 0:02:06.4]} 20. Rad1 {[%clk 0:01:36.6]} 20... Qh4 {[%clk
0:02:06.1]} 21. Rfe1 {[%clk 0:01:36.8]} 21... Bc3 {[%clk 0:01:41.1]} 22. Nxc3
{[%clk 0:01:33.9]} 22... bxc3 {[%clk 0:01:40.7]} 23. Qe2 {[%clk 0:00:29.6]}
23... Qh2+ {[%clk 0:01:17.6]} 24. Kf1 {[%clk 0:00:29.3]} 24... Qxg3 {[%clk
0:01:18.5]} 25. Bg1 {[%clk 0:00:18.9]} 25... Qxf4+ {[%clk 0:01:17.8]} 26. Qf3
{[%clk 0:00:19]} 26... Nh2+ {[%clk 0:00:58.5]} 27. Bxh2 {[%clk 0:00:18.7]} 27...
Qxh2 {[%clk 0:00:59.4]} 28. Qxc3 {[%clk 0:00:16.1]} 28... Re6 {[%clk 0:00:51.6]}
29. Rd3 {[%clk 0:00:12.3]} 29... Rae8 {[%clk 0:00:49]} 30. Rh3 {[%clk
0:00:11.8]} 30... Qf4+ {[%clk 0:00:49]} 31. Rf3 {[%clk 0:00:11]} 31... Qg5
{[%clk 0:00:39.3]} 32. Rfe3 {[%clk 0:00:08]} 32... Rf6+ {[%clk 0:00:37.9]} 33.
Kg1 {[%clk 0:00:07.7]} 33... Rf4 {[%clk 0:00:37.6]} 34. Rg3 {[%clk 0:00:06.9]}
34... Rg4 {[%clk 0:00:37]} 35. Rxg4 {[%clk 0:00:06]} 35... Qxg4 {[%clk
0:00:37.9]} 36. Qd3 {[%clk 0:00:05.5]} 36... Re5 {[%clk 0:00:31.7]} 37. Re2
{[%clk 0:00:03.6]} 37... d5 {[%clk 0:00:20.9]} 38. Re1 {[%clk 0:00:02.5]} 38...
Rg5 {[%clk 0:00:19.2]} 39. Re2 {[%clk 0:00:01.6]} 39... dxe4 {[%clk 0:00:17.9]}
40. Qd8+ {[%clk 0:00:02.5]} 40... Kg7 {[%clk 0:00:18.4]} 41. Rf2 {[%clk
0:00:03.1]} 41... Kh6 {[%clk 0:00:15.3]} 42. Qf8+ {[%clk 0:00:03.1]} 42... Kh5
{[%clk 0:00:15.6]} 43. Qxf7 {[%clk 0:00:03.8]} 43... Qd1+ {[%clk 0:00:13.7]} 44.
Kh2 {[%clk 0:00:04]} 44... Qd6+ {[%clk 0:00:12.6]} 45. Kg1 {[%clk 0:00:04.1]}
45... Qd1+ {[%clk 0:00:04.9]} 46. Kh2 {[%clk 0:00:04.2]} 46... Qd6+ {[%clk
0:00:05.4]} 47. Kg1 {[%clk 0:00:04.2]} 47... Qd1+ {[%clk 0:00:03.3]} 1/2-1/2

[Event "*** Titled Tuesday Blitz"]
[Site "Chess.com"]
[Date "2021.02.09"]
[Round "6"]
[White "xberli"]
[Black "Abdimalik_Abdisalimov"]
[Result "1-0"]
[WhiteElo "2461"]
[BlackElo "2289"]
[TimeControl "180+1"]
[EndTime "11:09:03 PST"]
[Termination "xberli won on time"]

1. Nf3 {[%clk 0:03:00.8]} 1... c5 {[%clk 0:02:58.2]} 2. g3 {[%clk 0:03:00.7]}
2... g6 {[%clk 0:02:57.2]} 3. Bg2 {[%clk 0:03:01.2]} 3... Bg7 {[%clk 0:02:57.6]}
4. O-O {[%clk 0:03:02.1]} 4... Nc6 {[%clk 0:02:57.2]} 5. c3 {[%clk 0:02:57.7]}
5... e5 {[%clk 0:02:54.8]} 6. e4 {[%clk 0:02:53.7]} 6... Nge7 {[%clk 0:02:53.4]}
7. a3 {[%clk 0:02:50.8]} 7... a5 {[%clk 0:02:48.2]} 8. d3 {[%clk 0:02:45.4]}
8... O-O {[%clk 0:02:46]} 9. Be3 {[%clk 0:02:45.6]} 9... d6 {[%clk 0:02:43.3]}
10. Qc1 {[%clk 0:02:45.7]} 10... f5 {[%clk 0:02:31.5]} 11. Bh6 {[%clk 0:02:43]}
11... a4 {[%clk 0:02:14]} 12. Bxg7 {[%clk 0:02:39.7]} 12... Kxg7 {[%clk
0:02:14.9]} 13. Nbd2 {[%clk 0:02:39.3]} 13... Na5 {[%clk 0:02:12.2]} 14. Qe1
{[%clk 0:02:25.9]} 14... b6 {[%clk 0:02:03.9]} 15. Rd1 {[%clk 0:02:22.1]} 15...
Ba6 {[%clk 0:02:03]} 16. c4 {[%clk 0:01:05.9]} 16... f4 {[%clk 0:02:00.1]} 17.
Nb1 {[%clk 0:01:01.1]} 17... b5 {[%clk 0:01:30.3]} 18. cxb5 {[%clk 0:00:57.9]}
18... Bxb5 {[%clk 0:01:30.3]} 19. Nc3 {[%clk 0:00:57.4]} 19... Qb6 {[%clk
0:01:27.8]} 20. Ng5 {[%clk 0:00:54]} 20... Bd7 {[%clk 0:01:21.6]} 21. Nd5 {[%clk
0:00:44]} 21... Nxd5 {[%clk 0:01:19.2]} 22. exd5 {[%clk 0:00:44.9]} 22... h6
{[%clk 0:01:01.2]} 23. Ne4 {[%clk 0:00:33]} 23... f3 {[%clk 0:00:53]} 24. Bh1
{[%clk 0:00:28.7]} 24... Bh3 {[%clk 0:00:53.1]} 25. Qe3 {[%clk 0:00:26.5]} 25...
Bxf1 {[%clk 0:00:52.3]} 26. Rxf1 {[%clk 0:00:27]} 26... Nb3 {[%clk 0:00:50.6]}
27. Bxf3 {[%clk 0:00:25.6]} 27... Nd4 {[%clk 0:00:47.9]} 28. Bd1 {[%clk
0:00:25]} 28... Rf7 {[%clk 0:00:22.6]} 29. h4 {[%clk 0:00:23.1]} 29... Rb7
{[%clk 0:00:17.8]} 30. h5 {[%clk 0:00:21.9]} 30... g5 {[%clk 0:00:09.7]} 31. Bg4
{[%clk 0:00:17.9]} 31... Rf8 {[%clk 0:00:06.2]} 32. Kg2 {[%clk 0:00:15.7]} 32...
Qd8 {[%clk 0:00:05.6]} 33. Rb1 {[%clk 0:00:11.8]} 33... Rb3 {[%clk 0:00:05.3]}
34. Nc3 {[%clk 0:00:10.9]} 34... Qf6 {[%clk 0:00:03.1]} 35. Qd2 {[%clk
0:00:09.9]} 35... Qf7 {[%clk 0:00:02.6]} 36. Be6 {[%clk 0:00:08.6]} 36... Qf6
{[%clk 0:00:02.9]} 37. Ne4 {[%clk 0:00:08]} 37... Rbb8 {[%clk 0:00:03.1]} 38.
Nxf6 {[%clk 0:00:07.5]} 38... Rxf6 {[%clk 0:00:04]} 39. Qa5 {[%clk 0:00:06]}
39... Nb3 {[%clk 0:00:04.9]} 40. Qc7+ {[%clk 0:00:04.8]} 40... Kh8 {[%clk
0:00:04.9]} 41. Qxb8+ {[%clk 0:00:05]} 1-0

[Event "*** Titled Tuesday Blitz"]
[Site "Chess.com"]
[Date "2021.02.09"]
[Round "6"]
[White "KaterinaMiroshnik"]
[Black "Rsnr"]
[Result "0-1"]
[WhiteElo "2614"]
[BlackElo "2764"]
[TimeControl "180+1"]
[EndTime "11:09:05 PST"]
[Termination "Rsnr won by resignation"]

1. d3 {[%clk 0:03:00.9]} 1... g6 {[%clk 0:02:48.1]} 2. Nd2 {[%clk 0:03:01.8]}
2... Bg7 {[%clk 0:02:48.6]} 3. Ngf3 {[%clk 0:03:01]} 3... d5 {[%clk 0:02:48.5]}
4. e4 {[%clk 0:03:00.5]} 4... Nf6 {[%clk 0:02:47.9]} 5. Be2 {[%clk 0:03:00]}
5... O-O {[%clk 0:02:44.9]} 6. O-O {[%clk 0:02:59.7]} 6... c5 {[%clk 0:02:45.6]}
7. c3 {[%clk 0:02:59.9]} 7... Nc6 {[%clk 0:02:46]} 8. Re1 {[%clk 0:03:00.1]}
8... h6 {[%clk 0:02:45.6]} 9. Qc2 {[%clk 0:03:00.2]} 9... e5 {[%clk 0:02:45.6]}
10. Nf1 {[%clk 0:02:59.8]} 10... Be6 {[%clk 0:02:44.2]} 11. Bd2 {[%clk
0:02:59.3]} 11... Rc8 {[%clk 0:02:40.5]} 12. Rad1 {[%clk 0:02:58]} 12... Re8
{[%clk 0:02:38.8]} 13. b3 {[%clk 0:02:56.7]} 13... Qc7 {[%clk 0:02:32.1]} 14. h3
{[%clk 0:02:52.3]} 14... a6 {[%clk 0:02:31.8]} 15. N1h2 {[%clk 0:02:51.8]} 15...
b5 {[%clk 0:02:31.5]} 16. Nf1 {[%clk 0:02:51.6]} 16... b4 {[%clk 0:02:21.8]} 17.
c4 {[%clk 0:02:48]} 17... dxe4 {[%clk 0:02:20.5]} 18. dxe4 {[%clk 0:02:47.5]}
18... Nd4 {[%clk 0:02:18.1]} 19. Nxd4 {[%clk 0:02:47.2]} 19... exd4 {[%clk
0:02:16.5]} 20. f4 {[%clk 0:02:43.8]} 20... a5 {[%clk 0:01:26.8]} 21. Bd3 {[%clk
0:02:43.2]} 21... a4 {[%clk 0:01:26.4]} 22. Nh2 {[%clk 0:02:41.1]} 22... axb3
{[%clk 0:01:23.2]} 23. axb3 {[%clk 0:02:42]} 23... Ra8 {[%clk 0:01:23.2]} 24. e5
{[%clk 0:02:36.8]} 24... Nd7 {[%clk 0:01:23]} 25. Bxg6 {[%clk 0:02:34.9]} 25...
fxg6 {[%clk 0:01:22.4]} 26. Qxg6 {[%clk 0:02:35.8]} 26... Bf7 {[%clk 0:01:23.1]}
27. Qg4 {[%clk 0:02:33]} 27... Kh8 {[%clk 0:00:54.6]} 28. Nf3 {[%clk 0:02:26.8]}
28... Ra2 {[%clk 0:00:37.9]} 29. Nh4 {[%clk 0:02:23.9]} 29... Qc6 {[%clk
0:00:24.3]} 30. Nf5 {[%clk 0:02:08]} 30... Qg6 {[%clk 0:00:24.1]} 31. Qxg6
{[%clk 0:02:00.3]} 31... Bxg6 {[%clk 0:00:25]} 32. Nd6 {[%clk 0:02:00.4]} 32...
Rd8 {[%clk 0:00:05.1]} 33. g4 {[%clk 0:01:57.3]} 33... Bc2 {[%clk 0:00:04.7]}
34. Ra1 {[%clk 0:01:56.9]} 34... Bxb3 {[%clk 0:00:04.5]} 35. Nf7+ {[%clk
0:01:50.6]} 35... Kg8 {[%clk 0:00:04.9]} 36. Nxd8 {[%clk 0:01:50.5]} 36... Bxc4
{[%clk 0:00:05.4]} 37. e6 {[%clk 0:01:42.9]} 37... Nf6 {[%clk 0:00:05.7]} 38. e7
{[%clk 0:01:40.4]} 38... Ne8 {[%clk 0:00:06]} 39. Nb7 {[%clk 0:01:23.5]} 39...
d3 {[%clk 0:00:05.4]} 40. Rxa2 {[%clk 0:01:22.3]} 40... Bxa2 {[%clk 0:00:06.3]}
41. Nxc5 {[%clk 0:01:22]} 41... Bd4+ {[%clk 0:00:06.7]} 42. Kg2 {[%clk
0:01:01.3]} 42... Bxc5 {[%clk 0:00:07]} 43. Rc1 {[%clk 0:00:57.5]} 43... Bd5+
{[%clk 0:00:05.1]} 44. Kf1 {[%clk 0:00:53.9]} 44... Bxe7 {[%clk 0:00:05.6]} 45.
Rc8 {[%clk 0:00:49.6]} 45... Kf7 {[%clk 0:00:05.6]} 46. Rb8 {[%clk 0:00:45.6]}
46... b3 {[%clk 0:00:06.2]} 47. Rb5 {[%clk 0:00:41.5]} 47... Bc4 {[%clk
0:00:05]} 48. Rb6 {[%clk 0:00:40.8]} 48... Nd6 {[%clk 0:00:04.6]} 49. f5 {[%clk
0:00:34.8]} 49... Ne4 {[%clk 0:00:04.4]} 50. Ke1 {[%clk 0:00:34.6]} 50... Nxd2
{[%clk 0:00:03.5]} 51. Kxd2 {[%clk 0:00:34.4]} 51... Bg5+ {[%clk 0:00:04.2]} 52.
Kd1 {[%clk 0:00:34.3]} 52... d2 {[%clk 0:00:05.1]} 53. Rb4 {[%clk 0:00:31.3]}
53... Bd5 {[%clk 0:00:04.1]} 54. Ke2 {[%clk 0:00:24.9]} 54... Bf3+ {[%clk
0:00:03.4]} 0-1

[Event "*** Titled Tuesday Blitz"]
[Site "Chess.com"]
[Date "2021.02.09"]
[Round "6"]
[White "PavelShkapenko"]
[Black "Kislov_Oleg"]
[Result "0-1"]
[WhiteElo "2683"]
[BlackElo "2494"]
[TimeControl "180+1"]
[EndTime "11:09:06 PST"]
[Termination "Kislov_Oleg won by resignation"]

1. e4 {[%clk 0:02:54]} 1... c5 {[%clk 0:02:59.8]} 2. c3 {[%clk 0:02:53.4]} 2...
e6 {[%clk 0:02:58.8]} 3. d4 {[%clk 0:02:53.3]} 3... d5 {[%clk 0:02:58.4]} 4.
exd5 {[%clk 0:02:53.8]} 4... exd5 {[%clk 0:02:54.3]} 5. Nf3 {[%clk 0:02:54.7]}
5... Nf6 {[%clk 0:02:54.1]} 6. g3 {[%clk 0:02:54.9]} 6... Nc6 {[%clk 0:02:52]}
7. Bg2 {[%clk 0:02:55]} 7... Be7 {[%clk 0:02:50.4]} 8. O-O {[%clk 0:02:54.9]}
8... O-O {[%clk 0:02:50.5]} 9. dxc5 {[%clk 0:02:54.9]} 9... Bxc5 {[%clk
0:02:50.1]} 10. Bg5 {[%clk 0:02:54.7]} 10... d4 {[%clk 0:02:32.2]} 11. cxd4
{[%clk 0:02:21.1]} 11... Nxd4 {[%clk 0:02:30.3]} 12. Nc3 {[%clk 0:01:59.3]}
12... Bg4 {[%clk 0:02:21.5]} 13. Ne4 {[%clk 0:01:58.7]} 13... Nxf3+ {[%clk
0:02:11.7]} 14. Bxf3 {[%clk 0:01:55.4]} 14... Qxd1 {[%clk 0:02:11.2]} 15. Rfxd1
{[%clk 0:01:27.4]} 15... Nxe4 {[%clk 0:01:53.9]} 16. Bxe4 {[%clk 0:01:19]} 16...
Bxd1 {[%clk 0:01:52.2]} 17. Rxd1 {[%clk 0:01:19.9]} 17... f6 {[%clk 0:01:49.7]}
18. Bf4 {[%clk 0:01:18.1]} 18... Rad8 {[%clk 0:01:45.1]} 19. Rc1 {[%clk
0:00:54.2]} 19... Bd6 {[%clk 0:01:41.6]} 20. Be3 {[%clk 0:00:50.4]} 20... b6
{[%clk 0:01:29.5]} 21. Bf5 {[%clk 0:00:50]} 21... Be5 {[%clk 0:01:22.4]} 22. b3
{[%clk 0:00:48.4]} 22... g6 {[%clk 0:01:10.4]} 23. Be6+ {[%clk 0:00:44.7]} 23...
Kg7 {[%clk 0:01:10.4]} 24. Rc4 {[%clk 0:00:40.1]} 24... Rfe8 {[%clk 0:01:00.4]}
25. Bg4 {[%clk 0:00:38.1]} 25... f5 {[%clk 0:00:59.9]} 26. Bf3 {[%clk
0:00:37.7]} 26... Re7 {[%clk 0:00:59]} 27. Rc6 {[%clk 0:00:33]} 27... Rd6 {[%clk
0:00:57.2]} 28. Rc4 {[%clk 0:00:28.8]} 28... Bf6 {[%clk 0:00:44.1]} 29. Kg2
{[%clk 0:00:28.7]} 29... h5 {[%clk 0:00:41.2]} 30. h4 {[%clk 0:00:28.6]} 30...
Red7 {[%clk 0:00:41]} 31. Rc8 {[%clk 0:00:23.8]} 31... Rd8 {[%clk 0:00:40.1]}
32. Rc7+ {[%clk 0:00:23.6]} 32... R6d7 {[%clk 0:00:40.5]} 33. Rc4 {[%clk
0:00:23.1]} 33... Bd4 {[%clk 0:00:40.4]} 34. Bg5 {[%clk 0:00:22.7]} 34... Bf6
{[%clk 0:00:36.2]} 35. Be3 {[%clk 0:00:22]} 35... Re7 {[%clk 0:00:31.8]} 36. Rc6
{[%clk 0:00:20.6]} 36... Rd3 {[%clk 0:00:24.5]} 37. Rc2 {[%clk 0:00:19.6]} 37...
Rc3 {[%clk 0:00:24.6]} 38. Rd2 {[%clk 0:00:19.3]} 38... Rcc7 {[%clk 0:00:21.3]}
39. Bf4 {[%clk 0:00:19.2]} 39... Rcd7 {[%clk 0:00:21.2]} 40. Rc2 {[%clk
0:00:19.6]} 40... Bd4 {[%clk 0:00:20.5]} 41. Rc8 {[%clk 0:00:18.7]} 41... Kh7
{[%clk 0:00:19.6]} 42. Rc2 {[%clk 0:00:18.4]} 42... Be5 {[%clk 0:00:19.8]} 43.
Bg5 {[%clk 0:00:18.3]} 43... Rc7 {[%clk 0:00:20]} 44. Rd2 {[%clk 0:00:18.3]}
44... Red7 {[%clk 0:00:20.2]} 45. Re2 {[%clk 0:00:18.7]} 45... Bg7 {[%clk
0:00:20.5]} 46. Re8 {[%clk 0:00:18.2]} 46... Rc2 {[%clk 0:00:19.1]} 47. a4
{[%clk 0:00:18]} 47... Rd3 {[%clk 0:00:18.1]} 48. Re6 {[%clk 0:00:13.8]} 48...
Rxb3 {[%clk 0:00:16.3]} 49. Bc6 {[%clk 0:00:13.9]} 49... Rbb2 {[%clk 0:00:15.8]}
50. Be8 {[%clk 0:00:11.7]} 50... Rxf2+ {[%clk 0:00:15.8]} 51. Kg1 {[%clk
0:00:11.8]} 51... Rg2+ {[%clk 0:00:15.6]} 52. Kf1 {[%clk 0:00:12.1]} 52... Rbf2+
{[%clk 0:00:14.3]} 53. Ke1 {[%clk 0:00:11.8]} 53... Bc3+ {[%clk 0:00:14.7]} 0-1

[Event "*** Titled Tuesday Blitz"]
[Site "Chess.com"]
[Date "2021.02.09"]
[Round "6"]
[White "Nachsueb"]
[Black "MergenKakabaev"]
[Result "0-1"]
[WhiteElo "2183"]
[BlackElo "2397"]
[TimeControl "180+1"]
[EndTime "11:09:08 PST"]
[Termination "MergenKakabaev won on time"]

1. d4 {[%clk 0:03:00.9]} 1... d5 {[%clk 0:02:59.8]} 2. c4 {[%clk 0:03:00.4]}
2... c6 {[%clk 0:03:00.1]} 3. Nf3 {[%clk 0:03:00]} 3... Nf6 {[%clk 0:03:00.2]}
4. Nc3 {[%clk 0:03:00.3]} 4... e6 {[%clk 0:02:59.9]} 5. Bg5 {[%clk 0:03:00.3]}
5... dxc4 {[%clk 0:02:59.2]} 6. e4 {[%clk 0:02:57.5]} 6... b5 {[%clk 0:02:58.9]}
7. e5 {[%clk 0:02:58]} 7... h6 {[%clk 0:02:58.8]} 8. Bh4 {[%clk 0:02:58.6]} 8...
g5 {[%clk 0:02:58.8]} 9. Nxg5 {[%clk 0:02:59.3]} 9... hxg5 {[%clk 0:02:59.7]}
10. Bxg5 {[%clk 0:03:00.2]} 10... Be7 {[%clk 0:03:00]} 11. exf6 {[%clk
0:02:58.9]} 11... Bxf6 {[%clk 0:03:00.9]} 12. Bxf6 {[%clk 0:02:49.5]} 12... Qxf6
{[%clk 0:03:01.8]} 13. Ne4 {[%clk 0:02:50]} 13... Qe7 {[%clk 0:03:01.1]} 14. Qf3
{[%clk 0:02:45.8]} 14... Nd7 {[%clk 0:02:22.2]} 15. Qg3 {[%clk 0:02:20.7]} 15...
e5 {[%clk 0:02:19]} 16. O-O-O {[%clk 0:02:10.6]} 16... Kf8 {[%clk 0:00:57.9]}
17. dxe5 {[%clk 0:01:50.5]} 17... Nxe5 {[%clk 0:00:54.1]} 18. f4 {[%clk
0:01:17.2]} 18... Ng4 {[%clk 0:00:51.4]} 19. Ng5 {[%clk 0:00:48.2]} 19... Bf5
{[%clk 0:00:43.5]} 20. h3 {[%clk 0:00:39.9]} 20... Qe3+ {[%clk 0:00:41.9]} 21.
Qxe3 {[%clk 0:00:38.3]} 21... Nxe3 {[%clk 0:00:42.8]} 22. Re1 {[%clk 0:00:27.2]}
22... Re8 {[%clk 0:00:41.8]} 23. Kd2 {[%clk 0:00:22]} 23... Nd5 {[%clk
0:00:38.4]} 24. Rxe8+ {[%clk 0:00:19.8]} 24... Kxe8 {[%clk 0:00:39.3]} 25. g3
{[%clk 0:00:18.7]} 25... f6 {[%clk 0:00:38]} 26. Nf3 {[%clk 0:00:17.2]} 26...
Be4 {[%clk 0:00:38.3]} 27. Bg2 {[%clk 0:00:17.7]} 27... Kd8 {[%clk 0:00:36.3]}
28. Re1 {[%clk 0:00:17.4]} 28... Bxf3 {[%clk 0:00:35.5]} 29. Bxf3 {[%clk
0:00:18.3]} 29... Rxh3 {[%clk 0:00:35.7]} 30. Rg1 {[%clk 0:00:17.2]} 30... Kc7
{[%clk 0:00:30.4]} 31. Rg2 {[%clk 0:00:14.7]} 31... Nxf4 {[%clk 0:00:30]} 32.
gxf4 {[%clk 0:00:12.1]} 32... Rxf3 {[%clk 0:00:30.9]} 33. Rg7+ {[%clk
0:00:12.2]} 33... Kb6 {[%clk 0:00:30.8]} 34. Rg4 {[%clk 0:00:11]} 34... f5
{[%clk 0:00:31.1]} 35. Rh4 {[%clk 0:00:10.7]} 35... b4 {[%clk 0:00:31.5]} 36.
Ke2 {[%clk 0:00:10.7]} 36... Rg3 {[%clk 0:00:30.9]} 37. Kd2 {[%clk 0:00:08.1]}
37... Kb5 {[%clk 0:00:29.6]} 38. Rh5 {[%clk 0:00:07.4]} 38... Rg2+ {[%clk
0:00:29.5]} 39. Kc1 {[%clk 0:00:07.4]} 39... c5 {[%clk 0:00:27.5]} 40. Rxf5
{[%clk 0:00:07.2]} 40... Rf2 {[%clk 0:00:28]} 41. Rf8 {[%clk 0:00:06.3]} 41...
c3 {[%clk 0:00:27.7]} 42. b3 {[%clk 0:00:06.3]} 42... Rxa2 {[%clk 0:00:25.6]}
43. f5 {[%clk 0:00:05.9]} 43... Rf2 {[%clk 0:00:25.4]} 44. f6 {[%clk 0:00:06.4]}
44... c4 {[%clk 0:00:24.6]} 45. Rb8+ {[%clk 0:00:05.6]} 45... Kc5 {[%clk
0:00:24.1]} 46. Rc8+ {[%clk 0:00:05.6]} 46... Kd6 {[%clk 0:00:21.4]} 47. Rxc4
{[%clk 0:00:01.3]} 47... a5 {[%clk 0:00:21.2]} 0-1